Cogmind - Beta 16.1 @@@ ROGUE MODE // 2026.03.23 @ 15:46:33 Player: Strawberry Result: Destroyed by P-70 Sage via exploding Neutrino Reactor Performance ------------- Evolutions (5) 2500 Regions Visited (6) 1200 Robots Destroyed (47) 235 Value Destroyed (2092) 2092 Prototype IDs (1) 20 Alien Tech Used (0) 0 Bonus (200) 200 TOTAL SCORE: 6247 Bonus ------- Pacifist 200 Cogmind --------- Core Integrity 0/1000 Matter 280/300 Energy 500/500 System Corruption 20% Temperature Cool (0) Movement Walking (120) Location -5/Factory Parts ------- > --- POWER (2) -------- Micro Fission Core > --- PROPULSION (5) --- Thunder Leg Antigrav System > --- UTILITY (6) ------ Improved Heat Sink Energy Well Improved Target Analyzer Hacking Suite > --- WEAPON (4) ------- (None) > --- INVENTORY (5) ---- (None) Peak State ------------ > --- POWER ------------ Light Fission Core Light Fission Core > --- PROPULSION ------- Improved Titanium Leg Improved Titanium Leg Flexi-carbon Leg Flexi-carbon Leg Thunder Leg > --- UTILITY ---------- Small Storage Unit Weapon Cycler Phase Shifter Focal Shield Hacking Suite Hacking Suite > --- WEAPON ----------- Shock Rifle Ion Cannon Gauss Rifle Advanced Assault Cannon > --- INVENTORY -------- Light Nuclear Core Micro Nuclear Core Carbon-fiber Leg Improved Cooling System Energy Well Tesla Rifle Grenade Launcher Remote Datajack [Rating: 72] Favorites ----------- Power Light Nuclear Core Engine Light Ion Engine Power Core Light Nuclear Core Propulsion Aluminum Leg Treads Light Treads Leg Aluminum Leg Hover Unit Antigrav System Utility Hacking Suite Device Advanced Weight Redist. System Storage Small Storage Unit Processor Improved Target Analyzer Hackware Hacking Suite Weapon Heavy Assault Rifle Energy Gun Shock Rifle Energy Cannon Ion Cannon Ballistic Gun Heavy Assault Rifle Ballistic Cannon Advanced Assault Cannon Launcher Grenade Launcher Special Weapon Improved Remote Datajack Slashing Weapon Ionic Axe Special Melee Weapon Improved Datajack Build | -11 -10 -9 -8 -7 -6 -5 ------- Run | Yrd Mat Mat Mat Fac Fac Fac Slots Evolved 10 | . . 2 2 2 2 2 Power 1 | . . . . . 1 . Propulsion 3 | . . 2 . . . 1 Utility 4 | . . . 2 1 1 . Weapon 2 | . . . . 1 . 1 Parts Attached 75 | 6 . 13 7 15 8 26 Power 16 | 1 . 3 2 1 2 7 Engine 6 | 1 . 2 . . . 3 Core 10 | . . 1 2 1 2 4 Reactor . | . . . . . . . Propulsion 26 | 2 . 7 3 5 2 7 Treads 2 | . . 2 . . . . Leg 23 | 2 . 5 3 5 2 6 Wheel . | . . . . . . . Hover 1 | . . . . . . 1 Flight . | . . . . . . . Utility 15 | 1 . 1 2 3 1 7 Device 9 | . . . 1 3 1 4 Storage 2 | 1 . . . . . 1 Processor 1 | . . . . . . 1 Hackware 3 | . . 1 1 . . 1 Protection . | . . . . . . . Artifact . | . . . . . . . Weapon 18 | 2 . 2 . 6 3 5 Energy Gun 3 | 1 . . . . . 2 Energy Cannon 1 | . . . . . 1 . Ballistic Gun 7 | 1 . 2 . 4 . . Ballistic Cannon 1 | . . . . . 1 . Launcher 1 | . . . . 1 . . Special Weapon 2 | . . . . . 1 1 Impact Weapon . | . . . . . . . Slashing Weapon 2 | . . . . . . 2 Piercing Weapon . | . . . . . . . Special Melee Weapon 1 | . . . . 1 . . Unidentified Prototypes 1 | . . . . . . 1 Parts Lost 45 | . . 1 1 9 1 33 Power 11 | . . 1 1 1 1 7 Propulsion 14 | . . . . 5 . 9 Utility 9 | . . . . 1 . 8 Weapon 11 | . . . . 2 . 9 Highest Loss Streak 19 | . . 1 1 4 1 19 To Critical Strikes . | . . . . . . . Average Backups 6 | 2 6 7 7 7 8 6 Power 1 | . 1 . 1 1 2 1 Propulsion . | 1 4 1 2 . . . Utility . | . . . . . 1 1 Weapon 2 | . 1 3 3 3 3 1 Tool/Special . | . . . . . . . Unused Backups 7 | . . 4 2 1 . . Power 1 | . . . . 1 . . Propulsion 2 | . . 2 . . . . Utility . | . . . . . . . Weapon 3 | . . 2 1 . . . Tool/Special 1 | . . . 1 . . . Average Slot Usage (%) 87 | . 85 95 88 89 92 79 Engine 1 | . 14 8 . . . . Core 7 | . . 2 9 6 9 8 Treads 1 | . . 12 . . . . Leg 25 | . 28 30 36 22 26 20 Device 10 | . . . . 13 16 13 Storage 7 | . 14 11 9 7 6 5 Hackware 12 | . . 8 15 15 13 9 Energy Gun 1 | . 14 1 . . . 2 Energy Cannon 1 | . . . . . 5 3 Ballistic Gun 13 | . 14 20 18 17 6 3 Ballistic Cannon 1 | . . . . . 5 3 Special Melee Weapon 1 | . . . . 4 . . Peak Build Rating 72 | 6 6 16 23 39 60 72 Average Rating 34 | 5 6 13 19 31 50 57 On Entrance 21 | . 6 6 16 23 39 60 Avg Prop Armor Cover (%) 16 | . . 16 . . . . Naked Turns . | . . . . . . . Heaviest Build 45 | 11 11 16 16 22 37 45 Greatest Support 103 | 20 20 40 52 69 80 103 Greatest Overweight (x) 6 | . . . . . . 6 Average Overweight (x) . | . . . . . . . Largest Inventory Capacity 8 | 8 8 8 8 8 8 8 Average Capacity 7 | 6 8 8 8 8 8 7 Most Carried 8 | 6 7 8 8 8 8 8 Average Carried 6 | 3 6 7 7 7 7 6 Final Capacity 8 | 8 8 8 8 8 8 5 Final Carried 8 | 6 7 8 8 8 8 . Class Distribution -------------------- 23% | Hacker-Mutant 23% | Scavenger-Mutant 16% | Mutant 15% | Hacker-Gunner 13% | Scavenger-Tank 6% | Scavenger-Gunner Dominant Class ---------------- Mutant | -10/Materials Mutant | -9/Materials Scavenger-Mutant | -8/Materials Hacker-Mutant | -7/Factory Scavenger-Gunner | -6/Factory Scavenger-Tank | -5/Factory Resources | -11 -10 -9 -8 -7 -6 -5 ----------- Run | Yrd Mat Mat Mat Fac Fac Fac Matter Collected 1714 | 240 . 285 235 281 123 550 Remotely . | . . . . . . . Salvage Created 2264 | . . 425 242 511 123 963 Parts 95 | . . 23 16 14 8 34 Haulers Intercepted . | . . . . . . . Recyclers Shooed 4 | . . 2 . 1 . 1 Parts Field Recycled . | . . . . . . . Retrieved Matter . | . . . . . . . Parts Self-Destructed . | . . . . . . . Prevented . | . . . . . . . Parts Restored . | . . . . . . . Kills | -11 -10 -9 -8 -7 -6 -5 ------- Run | Yrd Mat Mat Mat Fac Fac Fac Combat Hostiles Destroyed 43 | . . 8 8 10 2 15 Melee 7 | . . . . . . 7 Guns 27 | . . 8 8 8 . 3 Cannons 6 | . . . . . 2 4 AOE 3 | . . . . 2 . 1 Classes Destroyed 7 | . . 3 1 2 1 . Recycler 3 | . . 1 . 1 . 1 Operator 1 | . . 1 . . . . Swarmer 4 | . . . 4 . . . Grunt 29 | . . 8 4 7 . 10 Sentry 1 | . . . . 1 . . Hunter 2 | . . . . . 2 . Programmer 7 | . . . . 2 . 5 Best Kill Streak 5 | . . 4 4 3 2 5 Combat Bots Only 5 | . . 3 4 3 2 5 Max Kills in Single Turn 2 | . . 1 1 1 1 2 Gunslinging . | . . . . . . . Exploded 1 | . . . . 1 . 1 Melee 1 | . . . . . . 1 Uniques/NPCs Destroyed . | . . . . . . . Combat | -11 -10 -9 -8 -7 -6 -5 -------- Run | Yrd Mat Mat Mat Fac Fac Fac Hostile Shots Fired 534 | . 17 39 61 107 29 281 Missed 181 | . 6 14 16 42 9 94 Hits 353 | . 11 25 45 65 20 187 Projectile 353 | . 11 25 45 65 20 187 AOE 4 | . . . . 1 . 3 Critical Strikes 21 | . 1 1 2 2 1 14 Damage Taken 6224 | . 83 300 528 1125 338 3850 Core 1321 | . . 36 49 156 80 1000 Absorbed by Shields . | . . . . . . . Ignored by Resistances 10 | . . . . . . 10 Regen/Repaired (Parts) 147 | . . . . 147 . . Core Remaining (%) 91 | 100 100 91 91 77 90 . Volleys Fired 163 | . . 24 30 55 10 44 Largest 4 | . . 2 2 3 3 4 Hottest 178 | . . 46 46 79 128 178 Shots Fired 324 | . . 48 60 115 12 89 Gun 265 | . . 48 60 110 1 46 Cannon 52 | . . . . . 9 43 Launcher 5 | . . . . 5 . . Special 2 | . . . . . 2 . Kinetic 246 | . . 48 60 110 2 26 Thermal 39 | . . . . . 8 31 Explosive 5 | . . . . 5 . . Electromagnetic 32 | . . . . . . 32 Robot Hit Streak 7 | . . 6 7 6 4 5 Robot Miss Streak 7 | . . 3 2 7 1 3 Penetration Max 1 | . . . . . . 1 Secondary Targets 5 | . . 2 2 1 . . Max Gunslinging Chain 1 | . . 1 1 1 . . Shots Hit Robots 206 | . . 30 36 69 9 62 Core Hits 94 | . . 14 13 27 6 34 Critical Kills 1 | . . . . . . 1 Critical Parts Destroyed . | . . . . . . . Critical Strikes 4 | . . . . . . 4 Destroy 1 | . . . . . . 1 Blast 1 | . . . . . . 1 Sever 2 | . . . . . . 2 Melee Attacks 26 | . . . . 4 . 22 Impact . | . . . . . . . Slashing 22 | . . . . . . 22 Piercing . | . . . . . . . Sneak Attacks 3 | . . . . 3 . . Combat Hostiles . | . . . . . . . Follow-up Attacks 1 | . . . . . . 1 Damage Inflicted 4918 | . . 478 536 1604 179 2121 Guns 2744 | . . 465 536 1128 . 615 Cannons 734 | . . . . . 177 557 Explosions 673 | . . . . 458 . 215 Melee 683 | . . . . . . 683 Ramming 84 | . . 13 . 18 2 51 Kinetic 2667 | . . 465 536 1128 18 520 Thermal 941 | . . . . 184 159 598 Explosive 274 | . . . . 274 . . Electromagnetic 269 | . . . . . . 269 Impact . | . . . . . . . Slashing 683 | . . . . . . 683 Piercing . | . . . . . . . Highest Corruption 20 | . . . . 2 . 20 Average Corruption 7 | . . . . 1 . 10 Corruption Purged . | . . . . . . . Corruption Blocked . | . . . . . . . Effects 13 | . . . . 1 . 12 Message Errors 2 | . . . . . . 2 Matter Fused 2 | . . . . . . 2 Heat Flow Errors 1 | . . . . . . 1 Energy Discharges 3 | . . . . . . 3 Data Loss (minor) 3 | . . . . . . 3 Data Loss (major) 1 | . . . . 1 . . Misdirections 1 | . . . . . . 1 Overload Shots . | . . . . . . . Overflow Damage 146 | . . . . 73 . 73 Projectiles 10 | . . . . . . 10 Explosions 123 | . . . . 73 . 50 Melee 13 | . . . . . . 13 Knockbacks 2 | . . . . . 1 1 Impact . | . . . . . . . Kinetic 2 | . . . . . 1 1 Secondary . | . . . . . . . Self-Inflicted Damage 229 | . . . . 160 . 69 Shots 7 | . . . . 6 . 1 Rammed . | . . . . . . . Targets Rammed 17 | . . 2 . 5 2 8 Kicked 17 | . . 2 . 5 2 8 Crushed . | . . . . . . . Highest Temperature 479 | . . 19 18 48 36 479 Average Temperature 151 | . . 5 12 20 29 196 Received Heat Transfer 1515 | . . 186 234 321 9 765 Effects 10 | . . . . . . 10 Shutdowns 4 | . . . . . . 4 Energy Bleed 1 | . . . . . . 1 Interference 4 | . . . . . . 4 Damage (minor) 1 | . . . . . . 1 Siege Activations . | . . . . . . . Martial Activations . | . . . . . . . Shielding Activations . | . . . . . . . Robots Disrupted . | . . . . . . . Combat Hostiles . | . . . . . . . Robots Corrupted . | . . . . . . . Combat Hostiles . | . . . . . . . Parts Fried . | . . . . . . . Impact Corruptions 1 | . . . . . . 1 Robots Melted . | . . . . . . . Combat Hostiles . | . . . . . . . Parts Melted 1 | . . . . 1 . . Heat Transferred 1101 | . . . . 100 259 742 Parts Sabotaged . | . . . . . . . Parts Stolen . | . . . . . . . Parts Stripped . | . . . . . . . Power Chain Reactions 1 | . . . . . . 1 Alert | -11 -10 -9 -8 -7 -6 -5 ------- Run | Yrd Mat Mat Mat Fac Fac Fac Maximum Alert Level . | . . . . . . . Low Security (%) 100 | 100 100 100 100 100 100 100 Level 1 . | . . . . . . . Level 2 . | . . . . . . . Level 3 . | . . . . . . . Level 4 . | . . . . . . . Level 5 . | . . . . . . . High Security . | . . . . . . . Max Security . | . . . . . . . Peak Influence 166 | . . 141 166 120 120 84 Initial 60 | . . . 49 60 . 44 Average 38 | . . 64 56 38 30 28 Influence Increases 1580 | . . 223 263 451 170 473 Destroy 0b10 Robot/C 860 | . . 160 160 200 40 300 Destroy 0b10 Robot/NC 20 | . . 10 . 5 . 5 Destroy Leader 160 | . . 20 20 50 10 60 Successful Hack 111 | . . 17 7 62 . 25 Select Force Hacks 20 | . . . . . . 20 Disable Machine 60 | . . . 30 30 . . Destroy Structure 49 | . . 1 1 29 . 18 Partial Spotted 15 | . . . . 15 . . Lose Combat Pursuer 285 | . . 15 45 60 120 45 Influence Decreases 1566 | . . 105 248 584 80 549 Entered New Map 188 | . . . 69 73 . 46 Time Decay 1041 | . . 105 169 420 70 277 Lost Part 326 | . . . 10 80 10 226 Lost Ally 11 | . . . . 11 . . Squads Dispatched 13 | . 1 . 1 6 1 4 Investigation 3 | . 1 . . 1 . 1 Extermination 5 | . . . . 3 . 2 Reinforcement 5 | . . . 1 2 1 1 Assault . | . . . . . . . Garrison . | . . . . . . . Intercept . | . . . . . . . Searches Triggered . | . . . . . . . Construction Impeded 1 | . . . . 1 . . Haulers Reinforced . | . . . . . . . Active Scanning Responses . | . . . . . . . Cargo Convoy Interrupts . | . . . . . . . Stealth | -11 -10 -9 -8 -7 -6 -5 --------- Run | Yrd Mat Mat Mat Fac Fac Fac Distress Signals 3 | . . 2 . . . 1 Communications Jammed 36 | . . . . . . 36 Distress Signals 36 | . . . . . . 36 Times Spotted 81 | . 5 13 12 19 9 23 Peak Tracking Total 9 | . 6 4 4 5 8 9 Tactical Retreats 7 | . . 1 1 2 1 2 Traps | -11 -10 -9 -8 -7 -6 -5 ------- Run | Yrd Mat Mat Mat Fac Fac Fac Traps Triggered 2 | . 1 . . 1 . . Indirectly . | . . . . . . . Trap Hack Attempts . | . . . . . . . Triggered . | . . . . . . . Disarmed . | . . . . . . . Reprogrammed . | . . . . . . . Reused . | . . . . . . . Traps Extracted . | . . . . . . . Installed . | . . . . . . . Triggered . | . . . . . . . Machines | -11 -10 -9 -8 -7 -6 -5 ---------- Run | Yrd Mat Mat Mat Fac Fac Fac Machines Disabled 4 | . . . 2 2 . . Max in Single Turn 2 | . . . 1 2 . . Machines Repaired . | . . . . . . . Machines Dismantled . | . . . . . . . Machines Sabotaged . | . . . . . . . Overloaded Fab Kills . | . . . . . . . Hacking | -11 -10 -9 -8 -7 -6 -5 --------- Run | Yrd Mat Mat Mat Fac Fac Fac Machines Accessed 20 | . 1 3 1 9 . 6 Terminals 12 | . 1 3 1 3 . 4 Fabricators 3 | . . . . 2 . 1 Repair Stations 4 | . . . . 3 . 1 Recycling Units 1 | . . . . 1 . . Scanalyzers . | . . . . . . . Garrison Access . | . . . . . . . Total Hacks 50 | . 1 12 3 19 . 15 Successful 29 | . . 8 1 11 . 9 Failed 21 | . 1 4 2 8 . 6 Catastrophic 5 | . 1 . 1 2 . 1 Database Lockouts . | . . . . . . . Manual 26 | . 1 9 3 4 . 9 Terminals 32 | . 1 12 3 5 . 11 Fabricators 5 | . . . . 3 . 2 Repair Stations 9 | . . . . 7 . 2 Recycling Units 4 | . . . . 4 . . Scanalyzers . | . . . . . . . Garrison Access . | . . . . . . . Terminal Hacks 17 | . . 8 1 1 . 7 Open DSF 1 | . . . . . . 1 Level Access Points 3 | . . 1 1 . . 1 Branch Access Points 1 | . . 1 . . . . Emergency Access Points 2 | . . 1 . . . 1 Terminal Index 3 | . . 1 . 1 . 1 Recycling Unit Index 1 | . . . . . . 1 Alert Level 2 | . . 1 . . . 1 Registered Components 1 | . . 1 . . . . Zone Layout 3 | . . 2 . . . 1 Fabricator Hacks 4 | . . . . 3 . 1 Network Status 3 | . . . . 2 . 1 Build 1 | . . . . 1 . . Repair Station Hacks 4 | . . . . 4 . . Scan Component 2 | . . . . 2 . . Repair 2 | . . . . 2 . . Recycling Unit Hacks 3 | . . . . 3 . . Process 1 | . . . . 1 . . Report Inventory 1 | . . . . 1 . . Retrieve Matter 1 | . . . . 1 . . Scanalyzer . | . . . . . . . Garrison Access Hacks . | . . . . . . . Unauthorized Hacks 1 | . . . . . . 1 Terminals . | . . . . . . . Fabricators 1 | . . . . . . 1 Download 1 | . . . . . . 1 Repair Stations . | . . . . . . . Recycling Units . | . . . . . . . Scanalyzers . | . . . . . . . Garrison Access . | . . . . . . . Data Cores Recovered 1 | . . 1 . . . . Used . | . . . . . . . Hacking Detections 16 | . . 3 1 7 . 5 Full Trace Events 1 | . . . . 1 . . Feedback Events . | . . . . . . . Feedback Blocked . | . . . . . . . Robot Schematics Acquired . | . . . . . . . Robots Built 2 | . . . . 2 . . Authchips . | . . . . . . . Time 81 | . . . . 81 . . Total Robot Build Rating 2 | . . . . 2 . . Part Schematics Acquired . | . . . . . . . Parts Built . | . . . . . . . Authchips . | . . . . . . . Time . | . . . . . . . Total Part Build Rating . | . . . . . . . Part Studies Acquired . | . . . . . . . Parts Repaired 2 | . . . . 2 . . Time 21 | . . . . 21 . . Parts Recycled . | . . . . . . . Recycled Matter 50 | . . . . 50 . . Retrieved Matter 50 | . . . . 50 . . Retrieved Components . | . . . . . . . Parts Scanalyzed . | . . . . . . . Part Schematics Acquired . | . . . . . . . Parts Damaged . | . . . . . . . Bothacking | -11 -10 -9 -8 -7 -6 -5 ------------ Run | Yrd Mat Mat Mat Fac Fac Fac Used RIF Installer . | . . . . . . . Robots Hacked 2 | . . . . 2 . . Non-combat 2 | . . . . 2 . . Combat . | . . . . . . . Robot Hacks Applied 3 | . . . . 3 . . no_distress 2 | . . . . 2 . . check_alert 1 | . . . . 1 . . Relay Couplers Released . | . . . . . . . Fabnet Peak Effective % . | . . . . . . . Robots Rewired . | . . . . . . . Allies Hacked 1 | . . . . 1 . . Hacks Repelled . | . . . . . . . Allies | -11 -10 -9 -8 -7 -6 -5 -------- Run | Yrd Mat Mat Mat Fac Fac Fac Total Allies 2 | . . . . 2 . . Largest Group 1 | . . . . 1 . . Highest-Rated Group 8 | . . . . 8 . . Highest-Rated Ally 8 | . . . . 8 . . Total Orders . | . . . . . . . Ally Attacks . | . . . . . . . Total Damage . | . . . . . . . Kills . | . . . . . . . Allies Corrupted . | . . . . . . . Allies Melted . | . . . . . . . Intel | -11 -10 -9 -8 -7 -6 -5 ------- Run | Yrd Mat Mat Mat Fac Fac Fac Active Infowar (turns) 289 | . . . . . . 289 Jamming 289 | . . . . . . 289 Robot Analysis Total . | . . . . . . . Derelict Logs Recovered . | . . . . . . . Drone Launches . | . . . . . . . Drone Recoveries . | . . . . . . . Exploration | -11 -10 -9 -8 -7 -6 -5 ------------- Run | Yrd Mat Mat Mat Fac Fac Fac Turns Passed 3333 | 74 82 326 493 1249 221 888 Spaces Moved 2045 | 53 68 176 312 826 147 463 Core 21 | 6 . . . . . 15 Treads . | . . . . . . . Legs 2009 | 47 68 176 312 826 147 433 Wheels . | . . . . . . . Hover 15 | . . . . . . 15 Flight . | . . . . . . . Fastest Speed 50 | 50 120 120 120 120 125 60 Average Speed 123 | 112 120 120 120 121 125 133 Slowest Speed 350 | 120 120 120 120 125 125 350 Overloaded Moves . | . . . . . . . Propulsion Burnouts . | . . . . . . . Robots Hopped . | . . . . . . . Potential Cave-ins . | . . . . . . . Cave-ins Triggered . | . . . . . . . Exploration Rate (%) 14 | 3 19 16 25 24 4 13 Regions Visited 6 Branch Regions . Pre-discovered Areas . | . . . . . . . Known Exits Taken 2 | . . 1 1 . . . Unknown Exits Taken 4 | 1 1 . . 1 1 . Scrap Searched . | . . . . . . . Spaces Dug 23 | . . . . 23 . . Terrain Destroyed 57 | . . . . 46 . 11 Melee . | . . . . . . . Projectile 5 | . . . . 2 . 3 AOE 52 | . . . . 44 . 8 Terrain Rammed . | . . . . . . . Walls Destroyed . | . . . . . . . Machines Disabled . | . . . . . . . Actions | -11 -10 -9 -8 -7 -6 -5 --------- Run | Yrd Mat Mat Mat Fac Fac Fac Total 2504 | 64 68 245 373 963 172 619 Wait 105 | . . 10 13 41 2 39 Move 2039 | 52 67 175 311 825 146 463 Hop . | . . . . . . . Pick Up 36 | 6 1 8 5 8 1 7 Fast Attach 38 | 6 . 4 2 8 3 15 Attach 22 | . . 3 1 7 . 11 Detach 1 | . . . . 1 . . Swap 26 | . . 6 4 5 5 6 Drop 33 | . . 13 7 4 3 6 Fire 163 | . . 24 30 55 10 44 Melee 24 | . . . . 4 . 20 Ram . | . . . . . . . Kick 17 | . . 2 . 5 2 8 Crush . | . . . . . . . Escape Stasis . | . . . . . . . Rewire . | . . . . . . . Trap . | . . . . . . . Miscellaneous . | . . . . . . . Route ------- -11/Scrapyard -10/Materials -9/Materials (discovered 4 exits: *Mat x3 / Min) -8/Materials (discovered 3 exits: *Fac x3) -7/Factory -6/Factory -5/Factory (discovered 4 exits: Fac x4) History --------- Turn | Location | Event 6 | -11/Scrapyard | Discovered new exit (range 15) 75 | -11/Scrapyard | Entered Materials 148 | -10/Materials | Discovered new exit (range 8) 157 | -10/Materials | Entered another Materials area 157 | -9/Materials | Evolved 2 slots: Propulsion x2 328 | -9/Materials | Build established: Mutant 454 | -9/Materials | Identified exit to Mines 454 | -9/Materials | Identified exit to Materials 483 | -9/Materials | Entered another Materials area 483 | -8/Materials | Evolved 2 slots: Utility x2 631 | -8/Materials | Build established: Scavenger-Mutant 911 | -8/Materials | Discovered new exit (range 10) 961 | -8/Materials | Identified exit to Factory 976 | -8/Materials | Entered Factory 976 | -7/Factory | Evolved 2 slots: Utility x1, Weapon x1 1151 | -7/Factory | Lost 3 parts (2n1w) 1254 | -7/Factory | Lost 4 parts (1p2n1u) 1513 | -7/Factory | Build established: Hacker-Mutant 1623 | -7/Factory | Fabricated R-06 Scavenger? 1703 | -7/Factory | Repaired Aluminum Leg 1770 | -7/Factory | Repaired Aluminum Leg 2105 | -7/Factory | Build established: Hacker-Gunner 2179 | -7/Factory | Discovered new exit (range 16) 2225 | -7/Factory | Entered another Factory area 2225 | -6/Factory | Evolved 2 slots: Power x1, Utility x1 2428 | -6/Factory | Discovered new exit (range 9) 2446 | -6/Factory | Entered another Factory area 2446 | -5/Factory | Evolved 2 slots: Propulsion x1, Weapon x1 2537 | -5/Factory | Identified exit to Factory 2841 | -5/Factory | Build established: Scavenger-Tank 3016 | -5/Factory | Lost 3 parts (1p1n1w) 3077 | -5/Factory | System corruption reached 10% 3131 | -5/Factory | Core integrity fell below 50% 3166 | -5/Factory | Lost 19 parts (4p5n5u5w) 3313 | -5/Factory | Core integrity fell below 20% 3334 | -5/Factory | Destroyed by P-70 Sage via exploding Neutrino Reactor Last Messages --------------- 03306_ The unstable cave ceiling collapses. 03306_ K-01 Serf collects debris. 03308_ The unstable cave ceiling collapses. 03310_ P-70 Sage destroyed. 03310_ U-05 Engineer builds a Wall. 03310_ K-01 Serf collects debris. 03311_ The unstable cave ceiling collapses. 03313_ K-01 Serf collects debris. 03315_ Penetrated by Slug. 03315_ Ionic Axe destroyed. 03317_ K-01 Serf collects debris. 03319_ Acquired Antigrav System. 03319_ Penetrated by Slug. 03321_ U-05 Engineer builds a Wall. 03322_ The unstable cave ceiling collapses. 03323_ U-05 Engineer lays Concrete. 03330_ Acquired Thunder Leg. 03334_ Neutrino Reactor explodes. 03334_ Door malfunctions. 03334_ Emergency Access malfunctions. Map ----- +----------------------------------------------------+ | | | | | | | | | | | | | | | | | ?????????????????????????????????????############# | | ?????????????????????????????????????# ^ | | ?????????????????????????????????????# ^ ^ | | ?????????????????????????????????????# """""""%^ | | ????????????????????????????????????????"""""" * | | ????????????????????????????????????????""""""% ! | | ????????????????????????????????????????""""""%%%% | | ????????????????????????????????????????#######+## | | ?????????????????????####+####????????????# =!= | | ?????????????????????# ############## != | | ?????????????????????? ^ ^ | | ?????????????????????? | | ?????????????????????? | | ?????????????????????? """" """" | | ?????????????????????? """" """"% | | ??????????????????????? ####### """" """% | | ?????????????????????####/#####????# ^ | | ?????????????????????# @ #????# """" """" | | ?????????????????????# #????# """" """" | | ?????????????????????# #??### """" """" | | ?????????????????????# #??#"" | | ?????????????????????# #??#" """" """" | | ?????????????????????# #??#" """ """" | | ?????????????????????# p ####"" """" | | ?????????????????????# # #### ^ | | ?????????????????????# # # # """" | | ?????????????????????#/##### Y# # """" | | ??????????????????# |!] # """?? | | ??????????????????# |!] # T" | | ??????????????????# |]] !/ "" | | ??????????????????# # # | | ??????????????????# % | | ??????????????????####+### ######### | | ?????????????????????????# # #???????? | | ????????????????????????# ????????? ? | | ????????????????????????# ????????????? | | ????????????????????????# #???????????? | | ????????????????????????# #???????????? | | ????????????????????????# #???????????? | | ????????????????????????# #???????????? | | ????????????????????????# #???????????? | | ?????????????????????????? ?????????????? | +----------------------------------------------------+ Best States ------------- Heat Dissipation 67 Energy Generation 31 Energy Capacity 570 Matter Stores 300 Matter Capacity 300 Sight Range 16 Terrain Scan Density 10 Jamming Range 12 Additional Mass Support 9 Resistance: KI 20 Weapon Cycling 15 Phase Shifting 5 Evasion (%) 75 Target Analysis 6 Offensive Hacking 20 Item Schematics ----------------- None Robot Schematics ------------------ None Fabricated ------------ R-06 Scavenger | x2 | -7/Factory | Preloaded Repaired ---------- Aluminum Leg | 12% | -7/Factory Aluminum Leg | 24% | -7/Factory Studied --------- None Alien Tech Used ----------------- None Achievements -------------- Dodgeball, But With Guns My Command Is Your Wish Overwhelming root@ Challenges ------------ None Game ------ Seed BackupSubatomicFacilitator Manual? 0 Play Time 01:04:49 Cumulative 20.5 hours Start 2026.03.23 @ 00:39:57 End 2026.03.23 @ 15:46:33 Sessions 1 Manual Loads 0 Difficulty Rogue Special Mode None Game No. 27 Rogue 27 Adventurer 0 Explorer 0 Win Type - Total 0 Types 0/0/0/0/0/0/0/0/0/0 Lore% 12 Gallery% 19 Achievement% 15 Wizard Run 0 Options --------- Layout 1 ASCII 0 Keyboard 0 Movement Numpad Keybinds 0 Fullscreen 0 Font 28/SmallcapsGlow Map View 50x35 Zoom Use 0% Tactical HUD 1 Map Filters NONE Filters NONE Steam 1 RUN: 1eafcd3a-d8ae-43ff-9c53-0bd626200058